bitfinex/quotes_SOLUSD_20251115
["timestamp","ask_amount","ask_price","bid_price","bid_amount"]
[1763176642108,2.4369316,143.35,143.26,22.6512]
[1763176642314,1.7469316,143.34,143.28,1.7469316]
[1763176642508,1.7469316,143.33,143.27,24.54029317]
[1763176642838,2.4369316,143.33,143.27,24.54029317]
[1763176643023,0.69,143.32,143.27,24.54029317]
[1763176643200,0.69,143.32,143.28,1.7469316]
[1763176643526,1.7469316,143.35,143.3,1.7469316]
[1763176643705,0.69,143.33,143.3,1.7469316]
[1763176643908,0.69,143.35,143.31,1.7469316]
[1763176644106,0.69,143.35,143.32,1.7469316]
[1763176645017,0.69,143.35,143.28,7.12988797]
[1763176645018,0.69,143.35,143.31,2.73177849]
[1763176646733,0.69,143.35,143.3,2.73177849]
[1763176647740,0.69,143.35,143.28,42.29329997]
[1763176647741,3.42177849,143.35,143.29,0.14216157]
[1763176647919,3.42177849,143.35,143.29,2.87394006]
[1763176648108,0.69,143.34,143.29,2.87394006]
[1763176648698,0.69,143.34,143.3,2.73177849]
[1763176650854,0.69,143.34,143.29,2.87394006]
[1763176651548,0.69,143.34,143.3,2.73177849]
[1763176653920,0.69,143.34,143.29,0.14216157]
[1763176653921,0.69,143.36,143.31,2.73177849]
[1763176654217,0.69,143.35,143.31,2.73177849]
[1763176654427,0.69,143.35,143.3,2.73177849]
[1763176654623,0.69,143.35,143.31,0.14216157]
[1763176655119,0.69,143.35,143.31,2.87394006]
[1763176655319,126.9512,143.39,143.32,2.73177849]
[1763176655542,0.69,143.37,143.33,2.73177849]
[1763176656738,0.69,143.39,143.35,2.73177849]
[1763176657823,0.69,143.39,143.36,2.73177849]
[1763176659645,0.69,143.4,143.37,2.73177849]
[1763176659941,0.69,143.4,143.34,29.76969236]
[1763176659942,3.42177849,143.4,143.35,2.73177849]
[1763176660140,2.73177849,143.39,143.34,0.14216157]
[1763176660446,0.69,143.38,143.34,0.14216157]
[1763176660819,3.42177849,143.38,143.34,0.14216157]
[1763176661040,0.69,143.38,143.34,0.14216157]
[1763176661343,0.69,143.37,143.34,0.14216157]
[1763176662439,0.69,143.37,143.34,2.87394006]
[1763176662844,0.69,143.37,143.32,25.38297849]
[1763176663026,3.42177849,143.37,143.32,2.73177849]
[1763176663538,0.66,143.36,143.32,2.73177849]
[1763176663743,3.39177849,143.36,143.3,32.58218926]
[1763176663919,3.39177849,143.36,143.31,2.73177849]
[1763176664124,0.66,143.35,143.31,2.73177849]
[1763176664527,0.66,143.35,143.32,2.73177849]
[1763176664728,0.66,143.35,143.31,2.73177849]
[1763176665921,1.39177849,143.36,143.31,2.73177849]
[1763176666732,2.73177849,143.35,143.3,25.52514006]
[1763176666932,2.73177849,143.36,143.31,2.73177849]
[1763176667955,0.66,143.35,143.32,2.73177849]
[1763176668259,0.66,143.42,143.35,0.14216157]
[1763176668563,2.73177849,143.4,143.33,22.6512]
[1763176668724,2.73177849,143.39,143.34,2.73177849]
[1763176669125,0.66,143.38,143.34,2.73177849]
[1763176669324,0.66,143.38,143.35,2.73177849]
[1763176669627,2.73177849,143.4,143.35,2.73177849]
[1763176670021,32.44002769,143.43,143.34,2.73177849]
[1763176670022,2.73177849,143.39,143.34,2.73177849]
[1763176670448,2.73177849,143.39,143.34,3.42177849]
[1763176671251,2.73177849,143.39,143.34,2.73177849]
[1763176671455,2.73177849,143.39,143.34,3.42177849]
[1763176671626,0.66,143.38,143.34,3.42177849]
[1763176672534,0.66,143.38,143.34,2.73177849]
[1763176673047,0.66,143.38,143.34,3.42177849]
[1763176673566,3.39177849,143.38,143.33,2.73177849]
[1763176673931,0.66,143.37,143.33,3.42177849]
[1763176674842,2.73177849,143.36,143.31,22.6512]
[1763176675150,2.73177849,143.36,143.31,25.38297849]
[1763176675345,0.66,143.35,143.31,2.73177849]
[1763176675543,0.66,143.35,143.31,25.38297849]
[1763176675856,3.39177849,143.35,143.3,2.87394006]
[1763176676153,3.39177849,143.35,143.3,0.14216157]
[1763176676154,2.73177849,143.34,143.3,0.14216157]
[1763176676344,3.39177849,143.34,143.29,2.73177849]
[1763176676570,0.66,143.33,143.28,0.14216157]
[1763176676725,25.38297849,143.32,143.24,0.14216157]
[1763176676940,2.73177849,143.28,143.23,2.73177849]
[1763176677246,2.73177849,143.28,143.2,9.81493124]
[1763176677247,2.73177849,143.26,143.21,2.73177849]
[1763176677431,3.39177849,143.27,143.22,2.73177849]
[1763176677635,2.73177849,143.27,143.22,2.73177849]
[1763176677832,3.39177849,143.26,143.21,2.73177849]
[1763176678229,0.66,143.25,143.21,3.42177849]
[1763176679256,2.73177849,143.28,143.23,2.73177849]
[1763176679257,0.66,143.28,143.23,2.73177849]
[1763176679431,0.66,143.28,143.24,2.73177849]
[1763176679724,0.66,143.3,143.26,2.73177849]
[1763176679926,0.66,143.3,143.26,3.42177849]
[1763176680155,0.66,143.3,143.25,2.87394006]
[1763176680451,0.66,143.3,143.26,2.73177849]
[1763176680957,8.27738886,143.3,143.25,7.61738886]
[1763176681136,8.27738886,143.3,143.22,7.61738886]
[1763176681137,7.61738886,143.27,143.22,7.61738886]
[1763176681653,8.27738886,143.26,143.21,8.30738886]
[1763176682149,0.66,143.25,143.22,8.30738886]
[1763176682755,0.66,143.25,143.21,7.61738886]
[1763176682961,0.66,143.25,143.2,22.89336157]
[1763176682962,0.66,143.25,143.2,0.1]
[1763176683134,7.61738886,143.24,143.2,0.1]
[1763176683631,0.66,143.23,143.2,0.1]
[1763176683832,8.27738886,143.23,143.2,0.1]
[1763176684041,8.27738886,143.22,143.2,0.1]
[1763176684446,8.27738886,143.21,143.2,0.1]
[1763176684647,0.66,143.21,143.2,0.1]
[1763176684840,8.27738886,143.21,143.2,0.1]
[1763176686250,0.66,143.23,143.2,0.1]
[1763176686564,0.66,143.23,143.2,7.71738886]
[1763176687653,0.66,143.23,143.2,0.1]
[1763176688555,8.27738886,143.25,143.2,8.40738886]
[1763176688969,7.61738886,143.27,143.22,7.61738886]
[1763176689264,0.66,143.29,143.24,7.61738886]
[1763176689437,8.27738886,143.29,143.24,7.61738886]
[1763176689761,8.27738886,143.28,143.22,22.6512]
[1763176689963,7.61738886,143.27,143.22,7.61738886]
[1763176690129,8.27738886,143.27,143.22,7.61738886]
[1763176690329,0.69,143.26,143.22,7.61738886]
[1763176690547,8.30738886,143.26,143.2,0.1]
[1763176690742,7.61738886,143.25,143.2,7.71738886]
[1763176690953,7.61738886,143.24,143.2,0.1]
[1763176691170,0.69,143.23,143.2,0.1]
[1763176691466,0.69,143.23,143.2,7.71738886]
[1763176691977,59.78882769,143.28,143.21,0.68]
[1763176692135,7.61738886,143.28,143.23,7.61738886]
[1763176692467,0.69,143.27,143.22,7.61738886]
[1763176692666,7.61738886,143.28,143.23,7.61738886]
[1763176692830,8.28738886,143.29,143.24,7.61738886]
[1763176693258,9.78882769,143.32,143.2,23.57336157]
[1763176693259,7.61738886,143.27,143.2,23.57336157]
[1763176693460,7.61738886,143.27,143.22,7.61738886]
[1763176693634,0.67,143.26,143.21,7.61738886]
[1763176694034,0.67,143.26,143.21,8.29738886]
[1763176694562,8.28738886,143.26,143.21,8.29738886]
[1763176694945,0.67,143.25,143.21,8.29738886]
[1763176695143,0.67,143.25,143.2,7.71738886]
[1763176695449,0.67,143.25,143.21,7.61738886]
[1763176695668,22.6512,143.28,143.22,7.61738886]
[1763176695669,8.28738886,143.27,143.22,7.61738886]
[1763176695964,0.67,143.27,143.23,7.61738886]
[1763176696130,8.28738886,143.29,143.24,7.61738886]
[1763176696533,0.67,143.28,143.24,8.29738886]
[1763176696734,112.58738886,143.3,143.25,7.61738886]
[1763176696931,0.67,143.29,143.25,7.61738886]
[1763176697459,8.28738886,143.31,143.26,8.29738886]
[1763176697663,9.78882769,143.33,143.26,8.29738886]
[1763176697664,0.67,143.3,143.27,7.61738886]
[1763176697843,8.28738886,143.32,143.27,7.61738886]
[1763176698167,0.67,143.31,143.27,8.29738886]
[1763176699064,7.61738886,143.32,143.28,0.68]
[1763176699244,0.67,143.32,143.28,8.29738886]
[1763176699438,0.67,143.31,143.27,7.61738886]
[1763176699644,0.67,143.31,143.27,8.43955043]
[1763176701059,0.67,143.31,143.27,7.75955043]
[1763176701257,0.67,143.31,143.27,8.43955043]
[1763176701572,104.3,143.35,143.28,8.29738886]
[1763176701748,0.67,143.31,143.28,7.61738886]
[1763176702553,0.67,143.33,143.28,8.29738886]
[1763176702959,0.67,143.33,143.28,7.61738886]
[1763176703158,8.28738886,143.33,143.27,8.43955043]
[1763176703365,7.61738886,143.29,143.24,7.61738886]
[1763176703668,7.61738886,143.29,143.23,30.41075043]
[1763176703847,0.67,143.28,143.23,30.41075043]
[1763176704369,0.67,143.28,143.23,30.94858886]
[1763176704370,8.28738886,143.28,143.23,30.94858886]
[1763176704561,8.28738886,143.28,143.23,30.26858886]
[1763176704756,0.67,143.27,143.22,23.3312]
[1763176704966,0.67,143.27,143.23,7.61738886]
[1763176705169,0.67,143.27,143.23,8.29738886]
[1763176706675,0.67,143.27,143.23,0.68]
[1763176707849,22.6512,143.3,143.23,5.23856098]
[1763176708185,0.67,143.32,143.25,4.55856098]
[1763176708387,0.67,143.32,143.27,4.55856098]
[1763176708677,4.55856098,143.34,143.28,5.23856098]
[1763176708971,5.22856098,143.34,143.28,5.23856098]
[1763176709168,5.22856098,143.34,143.29,0.68]
[1763176709353,0.67,143.34,143.29,5.23856098]
[1763176709760,0.67,143.34,143.3,5.23856098]
[1763176710155,0.67,143.35,143.31,0.68]
[1763176710478,5.22856098,143.37,143.31,5.23856098]
[1763176710771,0.67,143.37,143.32,5.23856098]
[1763176712474,0.67,143.37,143.33,0.68]
[1763176712646,0.67,143.39,143.34,4.55856098]
[1763176712850,5.22856098,143.41,143.35,5.23856098]
[1763176713077,5.22856098,143.41,143.34,22.6512]
[1763176713078,4.55856098,143.39,143.34,22.6512]
[1763176713378,4.55856098,143.38,143.34,22.6512]
[1763176714088,0.67,143.37,143.34,22.6512]
[1763176714281,9.78882769,143.41,143.34,23.3312]
[1763176714465,5.22856098,143.4,143.34,27.88976098]
[1763176714951,0.67,143.39,143.34,27.20976098]
[1763176715161,0.67,143.39,143.35,5.23856098]
[1763176717471,5.22856098,143.39,143.34,27.20976098]
[1763176717780,5.22856098,143.39,143.34,27.88976098]
[1763176718184,4.55856098,143.4,143.35,4.55856098]
[1763176718381,0.67,143.39,143.35,5.23856098]
[1763176718561,4.55856098,143.41,143.35,5.23856098]
[1763176718760,5.22856098,143.41,143.35,4.55856098]
[1763176719092,21.16655833,143.49,143.4,4.55856098]
[1763176719093,0.67,143.45,143.4,4.55856098]
[1763176719389,0.67,143.44,143.39,4.55856098]
[1763176719684,4.55856098,143.43,143.37,5.23856098]
[1763176719853,4.55856098,143.43,143.37,27.88976098]
[1763176720058,0.67,143.42,143.39,4.55856098]
[1763176720258,0.67,143.44,143.39,4.55856098]
[1763176720453,0.67,143.43,143.39,5.23856098]
[1763176720858,0.67,143.43,143.4,4.55856098]
[1763176721069,0.87,143.49,143.42,4.55856098]
[1763176721272,0.67,143.48,143.43,5.23856098]
[1763176721480,0.67,143.48,143.41,0.82216157]
[1763176721481,4.55856098,143.47,143.41,0.82216157]
[1763176721676,4.55856098,143.47,143.42,4.55856098]
[1763176721870,5.22856098,143.47,143.42,4.55856098]
[1763176722075,0.67,143.46,143.42,4.55856098]
[1763176722273,0.67,143.46,143.42,5.23856098]
[1763176722790,27.89976098,143.48,143.43,5.26856098]
[1763176723090,0.69,143.47,143.43,4.55856098]
[1763176724774,0.69,143.47,143.43,5.26856098]
[1763176725306,0.69,143.47,143.43,4.55856098]
[1763176725805,0.69,143.47,143.42,4.55856098]
[1763176726012,0.69,143.47,143.42,5.26856098]
[1763176726683,0.69,143.47,143.43,4.55856098]
[1763176726905,27.20976098,143.48,143.43,4.55856098]
[1763176726906,22.6512,143.48,143.43,5.26856098]
[1763176727212,23.3412,143.48,143.44,5.26856098]
[1763176727690,22.6512,143.48,143.44,5.26856098]
[1763176727877,0.69,143.47,143.42,0.71]
[1763176728077,5.24856098,143.47,143.42,0.71]
[1763176728284,27.20976098,143.48,143.42,5.26856098]
[1763176728477,27.20976098,143.48,143.43,4.55856098]
[1763176728700,0.69,143.47,143.43,4.55856098]
[1763176728901,0.69,143.47,143.42,5.26856098]
[1763176729103,0.69,143.47,143.43,0.71]
[1763176729307,0.69,143.47,143.43,5.26856098]
[1763176730700,22.6512,143.48,143.45,4.55856098]
[1763176730904,0.2,143.49,143.44,0.71]
[1763176731100,0.2,143.49,143.46,4.55856098]
[1763176731706,0.89,143.49,143.45,4.55856098]
[1763176731911,0.89,143.49,143.44,4.55856098]
[1763176732117,22.6512,143.47,143.41,4.55856098]
[1763176732410,22.6512,143.47,143.42,5.26856098]
[1763176732610,23.3412,143.47,143.42,0.71]
[1763176732795,0.69,143.46,143.42,0.71]
[1763176732994,0.69,143.46,143.43,4.55856098]
[1763176734705,28.09976098,143.49,143.44,5.26856098]
[1763176734909,27.20976098,143.46,143.37,0.71]
[1763176735098,23.68336157,143.49,143.36,4.55856098]
[1763176735099,27.20976098,143.42,143.36,4.55856098]
[1763176735509,5.24856098,143.41,143.36,5.26856098]
[1763176735687,4.55856098,143.39,143.32,0.71]
[1763176735898,4.55856098,143.39,143.34,4.55856098]
[1763176736107,0.69,143.38,143.34,4.55856098]
[1763176736287,0.69,143.38,143.34,5.26856098]
[1763176736489,5.24856098,143.38,143.33,4.55856098]
[1763176737024,0.69,143.37,143.33,2.45810275]
[1763176737205,0.69,143.37,143.33,0.71]
[1763176737712,1.74810275,143.38,143.33,0.85216157]
[1763176738023,2.43810275,143.38,143.33,0.85216157]
[1763176738419,0.69,143.37,143.33,0.85216157]
[1763176738990,4.55245306,143.38,143.33,0.71]
[1763176739216,5.24245306,143.38,143.33,0.71]
[1763176739404,4.55245306,143.38,143.33,0.71]
[1763176739605,0.69,143.37,143.33,0.71]
[1763176739811,5.24245306,143.38,143.33,0.71]
[1763176740386,4.55245306,143.38,143.33,0.71]
[1763176740592,0.69,143.37,143.33,0.71]
[1763176740797,5.24245306,143.37,143.31,0.85216157]
[1763176741091,0.69,143.37,143.33,0.14216157]
[1763176741296,0.69,143.37,143.32,0.85216157]
[1763176741297,5.24245306,143.37,143.32,0.85216157]
[1763176741505,5.24245306,143.37,143.3,4.55245306]
[1763176741715,0.69,143.36,143.32,0.71]
[1763176742016,5.24245306,143.37,143.32,0.71]
[1763176742220,0.69,143.36,143.32,0.71]
[1763176742394,5.24245306,143.36,143.32,0.71]
[1763176744913,27.89365306,143.37,143.32,0.71]
[1763176745519,0.69,143.36,143.32,0.71]
[1763176745811,5.24245306,143.36,143.32,0.71]
[1763176748404,0.69,143.36,143.32,0.71]
[1763176748723,5.24245306,143.36,143.32,0.71]
[1763176749120,0.69,143.36,143.32,0.71]
[1763176749730,4.55245306,143.33,143.27,0.71]
[1763176750024,4.55245306,143.33,143.28,0.71]
[1763176750207,4.55245306,143.33,143.29,0.14216157]
[1763176750208,0.72,143.33,143.29,0.14216157]
[1763176750410,5.27245306,143.33,143.29,0.14216157]
[1763176750610,5.27245306,143.33,143.29,0.83216157]
[1763176752122,0.72,143.34,143.29,0.83216157]
[1763176752303,0.72,143.36,143.29,0.83216157]
[1763176752511,4.55245306,143.35,143.29,5.38461463]
[1763176752898,4.55245306,143.35,143.3,0.72]
[1763176753099,27.86365306,143.36,143.3,0.72]
[1763176753293,5.21245306,143.36,143.3,0.72]
[1763176753822,5.21245306,143.35,143.3,0.86216157]
[1763176754332,0.66,143.34,143.3,0.86216157]
[1763176754929,22.6512,143.36,143.3,12.39282016]
[1763176755118,27.86365306,143.36,143.3,5.41461463]
[1763176755299,27.86365306,143.36,143.31,0.86216157]
[1763176755921,0.66,143.35,143.31,0.86216157]
[1763176757737,5.21245306,143.38,143.31,5.41461463]
[1763176758030,0.66,143.38,143.31,12.39235637]
[1763176758330,104.96,143.39,143.34,0.14216157]
[1763176758500,0.66,143.39,143.35,5.27245306]
[1763176758700,4.55245306,143.41,143.35,5.27245306]
[1763176758921,2.40728066,143.41,143.36,0.72]
[1763176759305,22.6512,143.4,143.36,0.72]
[1763176759933,0.66,143.47,143.4,0.14216157]
[1763176760152,0.66,143.47,143.43,1.74728066]
[1763176761112,0.66,143.47,143.42,1.74728066]
[1763176761826,2.40728066,143.47,143.39,0.14216157]
[1763176762019,0.66,143.46,143.41,1.74728066]
[1763176762418,2.40728066,143.46,143.41,0.14216157]
[1763176762925,2.40728066,143.46,143.41,4.68921697]
[1763176762926,0.66,143.45,143.41,4.68921697]
[1763176763827,0.2,143.49,143.45,0.14216157]
[1763176764010,0.2,143.49,143.48,4.68921697]
[1763176764429,0.2,143.49,143.46,22.6512]
[1763176764430,0.2,143.49,143.46,27.1982554]
[1763176764617,0.2,143.49,143.48,4.5470554]
[1763176764813,0.86,143.49,143.48,4.5470554]
[1763176765026,0.2,143.49,143.48,4.68921697]
[1763176765234,0.2,143.49,143.43,9.78882769]
[1763176765537,0.2,143.49,143.47,4.5470554]
[1763176766030,0.86,143.49,143.47,4.5470554]
[1763176766809,0.86,143.49,143.45,4.5470554]
[1763176767016,0.86,143.49,143.47,7.59364692]
[1763176767425,0.2,143.49,143.48,7.59364692]
[1763176767616,0.86,143.49,143.48,7.59364692]
[1763176767817,0.2,143.49,143.48,7.59364692]
[1763176768133,0.2,143.49,143.48,7.73580849]
[1763176768711,0.2,143.49,143.48,14.70542097]
[1763176770143,0.2,143.49,143.48,24.49424866]
[1763176770516,0.2,143.49,143.48,32.08789558]
[1763176770718,0.2,143.49,143.48,24.49424866]
[1763176771217,0.2,143.5,143.49,32.58218926]
[1763176771435,0.2,143.5,143.49,68.46824462]
[1763176771639,0.2,143.5,143.49,40.17583618]
[1763176772543,0.2,143.5,143.49,47.14496294]
[1763176773120,0.2,143.5,143.49,54.73860986]
[1763176773319,0.2,143.5,143.49,47.14496294]
[1763176774936,0.2,143.5,143.49,22.79336157]
[1763176775138,0.86,143.5,143.49,0.14216157]
[1763176775337,0.86,143.5,143.48,7.59364692]
[1763176777327,0.66,143.49,143.48,7.59364692]
[1763176779739,0.66,143.49,143.47,0.14216157]
[1763176779740,0.66,143.49,143.47,7.73580849]
[1763176779937,0.66,143.49,143.47,0.14216157]
[1763176780136,0.66,143.49,143.4,7.59364692]
[1763176780351,8.25364692,143.49,143.44,7.59364692]
[1763176780540,0.66,143.48,143.44,7.59364692]
[1763176781143,8.25364692,143.48,143.43,7.59364692]
[1763176781337,0.66,143.48,143.44,7.59364692]
[1763176781675,0.66,143.47,143.44,7.59364692]
[1763176782450,0.66,143.47,143.42,7.59364692]
[1763176784950,22.6512,143.44,143.35,7.1180946]
[1763176785252,22.6512,143.44,143.39,7.59364692]
[1763176785253,22.6512,143.43,143.39,7.59364692]
[1763176785430,0.7,143.42,143.39,7.59364692]
[1763176785632,0.7,143.42,143.37,7.59364692]
[1763176786042,8.29364692,143.42,143.36,7.59364692]
[1763176786242,8.29364692,143.42,143.37,7.59364692]
[1763176786553,32.44002769,143.45,143.37,7.59364692]
[1763176786554,0.7,143.41,143.37,7.59364692]
[1763176789843,0.7,143.41,143.36,7.59364692]
[1763176790045,8.29364692,143.41,143.36,7.59364692]
[1763176790349,7.59364692,143.4,143.32,22.6512]
[1763176790551,7.59364692,143.39,143.34,7.59364692]
[1763176790729,8.29364692,143.39,143.34,7.59364692]
[1763176790930,0.7,143.38,143.34,7.59364692]
[1763176791328,0.7,143.38,143.32,0.14216157]
[1763176791329,8.29364692,143.38,143.33,7.59364692]
[1763176791728,0.7,143.37,143.33,7.59364692]
[1763176792130,0.7,143.37,143.34,7.73580849]
[1763176792349,0.7,143.37,143.36,7.59364692]
[1763176793264,0.7,143.39,143.36,7.59364692]
[1763176793554,0.7,143.39,143.33,9.93098926]
[1763176793854,0.7,143.39,143.35,7.59364692]
[1763176795062,7.59364692,143.38,143.32,0.14216157]
[1763176795363,7.59364692,143.38,143.33,7.59364692]
[1763176795552,7.59364692,143.36,143.3,3.64300359]
[1763176795753,7.59364692,143.36,143.31,7.59364692]
[1763176795943,0.7,143.35,143.31,7.59364692]
[1763176796151,8.29364692,143.35,143.3,7.73580849]
[1763176796543,0.7,143.34,143.31,7.59364692]
[1763176798658,7.59364692,143.37,143.32,7.59364692]
[1763176798858,22.6512,143.37,143.33,7.59364692]
[1763176799055,0.7,143.36,143.3,7.12036451]
[1763176799365,0.7,143.36,143.32,7.59364692]
[1763176800754,0.7,143.36,143.33,7.59364692]
[1763176801265,0.7,143.36,143.32,7.59364692]
[1763176801569,0.7,143.36,143.31,7.59364692]
[1763176802542,8.29364692,143.36,143.29,0.14216157]
[1763176802747,8.29364692,143.36,143.27,9.93098926]
[1763176802748,7.59364692,143.34,143.27,9.93098926]
[1763176803061,7.59364692,143.34,143.29,7.59364692]
[1763176803260,0.7,143.33,143.29,7.59364692]
[1763176803859,0.7,143.33,143.3,7.59364692]
[1763176804055,112.59364692,143.38,143.32,7.59364692]
[1763176804262,0.7,143.37,143.33,7.59364692]
[1763176804658,0.7,143.37,143.32,7.73580849]
[1763176804863,8.29364692,143.37,143.32,0.14216157]
[1763176805174,8.29364692,143.37,143.32,7.73580849]
[1763176805349,0.7,143.36,143.32,7.73580849]
[1763176806064,8.29364692,143.36,143.31,7.59364692]
[1763176806569,0.7,143.35,143.31,7.59364692]
[1763176806768,0.7,143.35,143.31,0.14216157]
[1763176807153,0.7,143.35,143.31,7.73580849]
[1763176807671,8.29364692,143.35,143.3,7.59364692]
[1763176807967,8.29364692,143.35,143.29,7.59364692]
[1763176807968,7.59364692,143.34,143.29,7.59364692]
[1763176808160,0.7,143.33,143.29,7.59364692]
[1763176808357,8.29364692,143.33,143.28,7.59364692]
[1763176808762,0.7,143.32,143.28,7.59364692]
[1763176810560,0.67,143.32,143.29,7.59364692]
[1763176810772,0.67,143.32,143.3,7.59364692]
[1763176811072,0.67,143.36,143.31,7.59364692]
[1763176811275,0.67,143.35,143.32,7.59364692]
[1763176811458,0.67,143.35,143.31,7.59364692]
[1763176811645,8.26364692,143.35,143.3,7.59364692]
[1763176812064,0.67,143.34,143.3,7.59364692]
[1763176812349,0.67,143.34,143.28,7.59364692]
[1763176812350,7.59364692,143.33,143.28,7.59364692]
[1763176812550,8.26364692,143.34,143.28,7.59364692]
[1763176812774,0.68,143.33,143.28,7.59364692]
[1763176812958,0.68,143.33,143.29,7.59364692]
[1763176813277,0.68,143.33,143.3,7.59364692]
[1763176816470,0.68,143.35,143.31,7.59364692]
[1763176817052,0.68,143.35,143.3,7.73580849]
[1763176817258,7.59364692,143.34,143.3,0.14216157]
[1763176817774,0.68,143.33,143.3,0.14216157]
[1763176821174,0.68,143.33,143.3,7.73580849]
[1763176822386,8.27364692,143.33,143.26,3.64753839]
[1763176822588,7.59364692,143.31,143.27,0.14216157]
[1763176823081,0.68,143.3,143.27,0.14216157]
[1763176825060,0.68,143.3,143.27,2.87590684]
[1763176827087,2.73374527,143.33,143.28,2.73374527]
[1763176827382,2.73374527,143.32,143.27,0.14216157]
[1763176827770,0.68,143.31,143.27,2.87590684]
[1763176828986,0.68,143.31,143.28,1.74919442]
[1763176829763,0.68,143.32,143.28,1.74919442]
[1763176829959,0.68,143.34,143.3,1.74919442]
[1763176830196,24.40039442,143.36,143.31,1.74919442]
[1763176830390,0.68,143.36,143.33,1.74919442]
[1763176830598,0.68,143.38,143.34,1.74919442]
[1763176831178,0.68,143.38,143.35,1.74919442]
[1763176832509,9.78882769,143.43,143.36,6.99677768]
[1763176832510,0.68,143.41,143.36,6.99677768]
[1763176832690,0.68,143.4,143.34,7.11838281]
[1763176832890,0.68,143.4,143.37,1.74919442]
[1763176833291,9.78882769,143.46,143.37,1.74919442]
[1763176833292,0.68,143.43,143.4,0.14216157]
[1763176833496,0.68,143.43,143.41,1.74919442]
[1763176833684,0.68,143.45,143.42,1.74919442]
[1763176834899,0.68,143.45,143.41,4.54649984]
[1763176835476,0.68,143.45,143.42,4.54649984]
[1763176835904,0.68,143.45,143.41,4.68866141]
[1763176837400,0.68,143.45,143.41,0.14216157]
[1763176837714,4.54649984,143.44,143.39,4.68866141]
[1763176838086,0.68,143.43,143.4,4.54649984]
[1763176838286,0.68,143.43,143.39,0.14216157]
[1763176838515,5.22649984,143.43,143.38,4.54649984]
[1763176838807,5.22649984,143.43,143.39,4.54649984]
[1763176839113,0.68,143.42,143.39,4.54649984]
[1763176839808,5.22649984,143.44,143.4,4.54649984]
[1763176840107,22.6512,143.47,143.4,4.54649984]
[1763176840108,0.68,143.43,143.4,4.54649984]
[1763176842498,0.68,143.43,143.4,0.14216157]
[1763176843007,0.68,143.43,143.4,4.54649984]
[1763176844290,23.3612,143.46,143.42,4.54649984]
[1763176844508,23.3612,143.46,143.43,4.54649984]
[1763176849396,0.71,143.46,143.44,4.54649984]
[1763176850401,0.71,143.46,143.43,4.54649984]
[1763176852325,22.6512,143.43,143.39,0.14216157]
[1763176852524,4.54649984,143.44,143.39,0.14216157]
[1763176852525,4.54649984,143.44,143.39,4.68866141]
[1763176852697,0.71,143.44,143.41,4.68866141]
[1763176853027,0.71,143.43,143.41,4.68866141]
[1763176853202,4.54649984,143.45,143.41,4.68866141]
[1763176853406,0.71,143.45,143.41,4.68866141]
[1763176854210,4.54649984,143.44,143.39,4.54649984]
[1763176854408,4.54649984,143.43,143.39,0.14216157]
[1763176854930,0.71,143.42,143.39,0.14216157]
[1763176855398,0.71,143.42,143.39,4.68866141]
[1763176856423,0.71,143.42,143.39,0.14216157]
[1763176857012,0.71,143.42,143.37,9.78882769]
[1763176857318,1.74666694,143.38,143.33,1.74666694]
[1763176857505,1.74666694,143.39,143.34,1.74666694]
[1763176857916,0.71,143.38,143.34,1.74666694]
[1763176858203,2.45666694,143.38,143.33,24.39786694]
[1763176858405,2.45666694,143.38,143.32,1.74666694]
[1763176858626,0.71,143.37,143.32,1.74666694]
[1763176858934,0.71,143.37,143.33,1.74666694]
[1763176860728,0.71,143.37,143.31,10.07098926]
[1763176860945,0.71,143.37,143.33,1.88882851]
[1763176861113,22.6512,143.4,143.36,1.74666694]
[1763176861114,25.10786694,143.4,143.36,1.74666694]
[1763176861433,0.71,143.39,143.35,1.74666694]
[1763176862019,0.71,143.39,143.29,5.3916838]
[1763176862020,3.49333388,143.36,143.29,5.3916838]
[1763176862220,6.98666776,143.36,143.29,1.74666694]
[1763176862529,0.71,143.35,143.3,0.14216157]